[Event "ESTCC 50 2019"]
[Site "Mali Losinj"]
[Date "2019.09.18"]
[Round "1.24"]
[White "Martic, Zlatko"]
[Black "Jenssen, Ove S"]
[Result "1-0"]
[ECO "D02"]
[WhiteElo "2283"]
[BlackElo "1827"]
[Annotator "NA"]
[PlyCount "75"]
[EventDate "2019.09.18"]
[EventType "team-tourn"]
[EventCountry "CRO"]
[SourceTitle "playchess.com"]
[Source "ChessBase"]
[SourceQuality "1"]
[WhiteTeam "Croatia"]
[BlackTeam "Norway"]
[WhiteTeamCountry "CRO"]
[BlackTeamCountry "NOR"]
[TimeControl "40/5400+30:1800+30"]

1. d4 {[%emt 0:00:30]} d5 {[%emt 0:00:30]} 2. Nf3 {[%emt 0:00:30]} Nf6 {[%emt 0:00:30]} 3. Bf4 {[%emt 0:00:00]} Bf5 {[%emt 0:00:30]} 4. e3 {[%emt 0:00:00]} e6 {[%emt 0:00:00]} 5. c4 {[%emt 0:01:30]} c6 {[%emt 0:00:00]} 6. Nc3 {[%emt 0:00:30]} Bd6 {[%emt 0:02:30]} 7. Bxd6 {[%emt 0:03:30]} Qxd6 {[%emt 0:00:30]} 8. Qb3 {[%emt 0:00:30]} Nbd7 {[%emt 0:01:30]} 9. Rc1 {[%emt 0:01:30]} O-O {[%emt 0:00:30]} 10. Be2 {[%emt 0:00:30]} dxc4 {[%emt 0:06:30]} 11. Bxc4 {[%emt 0:00:30]} Ne4 {[%emt 0:00:30]} 12. O-O {[%emt 0:01:30]} Rab8 {[%emt 0:03:30]} 13. Rfd1 {[%emt 0:00:30]} Qe7 {[%emt 0:01:30]} 14. Be2 {[%emt 0:04:30]} Ndf6 {[%emt 0:02:30]} 15. Ne5 {[%emt 0:10:30]} Nd5 {[%emt 0:04:30]} 16. Nxe4 {[%emt 0:04:30]} Bxe4 {[%emt 0:00:30]} 17. f3 {[%emt 0:01:30]} Bg6 {[%emt 0:00:30]} 18. e4 {[%emt 0:00:30]} Nf4 {[%emt 0:03:30]} 19. Bf1 {[%emt 0:00:30]} Rfd8 {[%emt 0:00:30]} 20. Qe3 {[%emt 0:01:30]} Qg5 {[%emt 0:02:30]} 21. Kh1 {[%emt 0:01:30]} f6 {[%emt 0:03:30]} 22. Nxg6 {[%emt 0:09:30]} hxg6 {[%emt 0:02:30]} 23. g3 {[%emt 0:15:30]} Nh3 {[%emt 0:01:30]} 24. f4 {[%emt 0:00:30]} Qh6 {[%emt 0:01:30]} 25. d5 {[%emt 0:05:30]} exd5 {[%emt 0:04:30]} 26. exd5 {[%emt 0:02:30]} Re8 {[%emt 0:00:30]} 27. Qf3 {[%emt 0:00:30]} cxd5 {[%emt 0:01:30]} 28. Qxd5+ {[%emt 0:00:30]} Kh7 {[%emt 0:00:30]} 29. Qg2 {[%emt 0:00:30]} Nxf4 {[%emt 0:00:30]} 30. gxf4 {[%emt 0:00:00]} Qxf4 {[%emt 0:00:30]} 31. Rc3 {[%emt 0:06:00]} Re5 {[%emt 0:00:30]} 32. Rh3+ {[%emt 0:02:30]} Rh5 {[%emt 0:02:30]} 33. Rxh5+ {[%emt 0:00:30]} gxh5 {[%emt 0:00:30]} 34. Bd3+ {[%emt 0:00:30]} Kh8 {[%emt 0:05:30]} 35. Qd5 {[%emt 0:03:30]} Qe5 {[%emt 0:06:30]} 36. Qxe5 {[%emt 0:00:30]} fxe5 {[%emt 0:00:00]} 37. Bg6 {[%emt 0:00:00]} h4 {[%emt 0:01:00]} 38. Kg2 {[%emt 0:00:00]} 1-0

[Event "ESTCC 50 2019"]
[Site "Mali Losinj"]
[Date "2019.09.19"]
[Round "2.2"]
[White "Gleizerov, Evgeny"]
[Black "Mohr, Georg"]
[Result "1-0"]
[ECO "A41"]
[WhiteElo "2503"]
[BlackElo "2445"]
[Annotator "ChessBase"]
[PlyCount "65"]
[EventDate "2019.09.18"]
[EventType "team-tourn"]
[EventCountry "CRO"]
[SourceTitle "playchess.com"]
[Source "ChessBase"]
[SourceQuality "1"]
[WhiteTeam "Russia"]
[BlackTeam "Slovenia"]
[WhiteTeamCountry "RUS"]
[BlackTeamCountry "SLO"]
[TimeControl "40/5400+30:1800+30"]

1. d4 {[%emt 0:00:30]} d6 {[%emt 0:04:30]} 2. Nf3 {[%emt 0:00:00]} g6 {[%emt 0:00:30]} 3. c4 {[%emt 0:00:00]} Bg7 {[%emt 0:00:30]} 4. Nc3 {[%emt 0:00:00]} c5 {[%emt 0:00:00]} 5. dxc5 {[%emt 0:01:00]} dxc5 {[%emt 0:00:00]} 6. Qxd8+ {[%emt 0:01:30]} Kxd8 {[%emt 0:00:00]} 7. Bd2 {[%emt 0:00:30]} Nc6 {[%emt 0:10:00]} 8. O-O-O {[%emt 0:00:30]} Bd7 {[%emt 0:00:30]} 9. g3 {[%emt 0:03:30]} Ke8 {[%emt 0:05:30]} 10. Bg2 {[%emt 0:12:30]} Rc8 {[%emt 0:02:30]} 11. h3 {[%emt 0:06:30]} Nf6 {[%emt 0:28:30]} 12. g4 {[%emt 0:02:30]} h6 {[%emt 0:00:30]} 13. Bf4 {[%emt 0:06:30]} Be6 {[%emt 0:03:30]} 14. Ne5 {[%emt 0:03:30]} Nd7 {[%emt 0:03:30]} 15. Bxc6 {[%emt 0:10:30]} bxc6 {[%emt 0:06:30]} 16. Nxd7 {[%emt 0:01:30]} Bxd7 {[%emt 0:00:30]} 17. Na4 {[%emt 0:00:30]} Be6 {[%emt 0:07:30]} 18. b3 {[%emt 0:01:30]} f5 {[%emt 0:00:30]} 19. Nxc5 {[%emt 0:00:30]} Kf7 {[%emt 0:00:00]} 20. gxf5 {[%emt 0:04:30]} gxf5 {[%emt 0:00:00]} 21. Rhg1 {[%emt 0:08:30]} Bf6 {[%emt 0:02:30]} 22. Rd3 {[%emt 0:00:30]} Ra8 {[%emt 0:17:13]} 23. Re3 {[%emt 0:04:30]} Bc8 {[%emt 0:01:19]} 24. Be5 {[%emt 0:00:30]} Bxe5 {[%emt 0:00:29]} 25. Rxe5 {[%emt 0:00:30]} f4 {[%emt 0:00:04]} 26. Rh5 {[%emt 0:05:30]} Kf6 {[%emt 0:00:45]} 27. Ne4+ {[%emt 0:02:30]} Kf7 {[%emt 0:00:01]} 28. Rh4 {[%emt 0:01:30]} e5 {[%emt 0:00:34]} 29. Rh5 {[%emt 0:00:30]} a5 {[%emt 0:00:21]} 30. h4 {[%emt 0:02:30]} a4 {[%emt 0:00:30]} 31. Kb2 {[%emt 0:01:29]} axb3 {[%emt 0:00:09]} 32. axb3 {[%emt 0:00:03]} Ke6 {[%emt 0:00:22]} 33. Rg6+ {[%emt 0:00:14]} 1-0

[Event "ESTCC 50 2019"]
[Site "Mali Losinj"]
[Date "2019.09.19"]
[Round "2.3"]
[White "Mencinger, Vojko"]
[Black "Shcherbakov, Ruslan"]
[Result "0-1"]
[ECO "B07"]
[WhiteElo "2332"]
[BlackElo "2516"]
[Annotator "RC"]
[PlyCount "132"]
[EventDate "2019.09.18"]
[EventType "team-tourn"]
[EventCountry "CRO"]
[SourceTitle "playchess.com"]
[Source "ChessBase"]
[SourceQuality "1"]
[WhiteTeam "Slovenia"]
[BlackTeam "Russia"]
[WhiteTeamCountry "SLO"]
[BlackTeamCountry "RUS"]
[TimeControl "40/5400+30:1800+30"]

1. e4 {[%emt 0:00:30]} c5 {[%emt 0:00:30]} 2. c3 {[%emt 0:00:30]} d6 {[%emt 0:13:30]} 3. d4 {[%emt 0:00:30]} Nf6 {[%emt 0:00:00]} 4. Bd3 {[%emt 0:04:30]} e5 {[%emt 0:00:00]} 5. dxe5 {[%emt 0:06:30]} dxe5 {[%emt 0:00:30]} 6. Nf3 {[%emt 0:00:30]} Nc6 {[%emt 0:00:30]} 7. O-O {[%emt 0:01:30]} Be7 {[%emt 0:02:30]} 8. Qe2 {[%emt 0:04:30]} O-O {[%emt 0:05:30]} 9. Na3 {[%emt 0:11:30]} Qc7 {[%emt 0:21:30]} 10. Nb5 {[%emt 0:09:30]} Qb8 {[%emt 0:00:30]} 11. a4 {[%emt 0:00:30]} h6 {[%emt 0:14:30]} 12. Bc4 {[%emt 0:07:30]} Na5 {[%emt 0:01:30]} 13. Na3 {[%emt 0:06:30]} Nxc4 {[%emt 0:01:30]} 14. Nxc4 {[%emt 0:02:30]} Bg4 {[%emt 0:00:30]} 15. h3 {[%emt 0:02:30]} Bh5 {[%emt 0:00:30]} 16. Qe3 {[%emt 0:01:30]} Nd7 {[%emt 0:01:30]} 17. g4 {[%emt 0:08:30]} Bg6 {[%emt 0:00:30]} 18. Rd1 {[%emt 0:00:30]} Qc7 {[%emt 0:01:30]} 19. b3 {[%emt 0:06:30]} Rfe8 {[%emt 0:02:30]} 20. Ra2 {[%emt 0:00:30]} Nf6 {[%emt 0:00:30]} 21. Rad2 {[%emt 0:04:44]} Bxe4 {[%emt 0:04:30]} 22. Nfxe5 {[%emt 0:03:51]} Rad8 {[%emt 0:01:30]} 23. Qf4 {[%emt 0:06:36]} Bc2 {[%emt 0:03:30]} 24. Rxd8 {[%emt 0:03:34]} Rxd8 {[%emt 0:00:30]} 25. Rxd8+ {[%emt 0:00:24]} Qxd8 {[%emt 0:00:30]} 26. Nd2 {[%emt 0:00:59]} Bxb3 {[%emt 0:04:49]} 27. Nxb3 {[%emt 0:01:46]} Qd1+ {[%emt 0:00:06]} 28. Kg2 {[%emt 0:00:44]} Qxb3 {[%emt 0:00:05]} 29. Qf5 {[%emt 0:01:40]} Qd5+ {[%emt 0:03:13]} 30. f3 {[%emt 0:02:12]} Bd6 {[%emt 0:00:57]} 31. Nd3 {[%emt 0:01:26]} Qxf5 {[%emt 0:10:19]} 32. gxf5 {[%emt 0:00:02]} Nd5 {[%emt 0:00:00]} 33. c4 {[%emt 0:00:13]} Nb6 {[%emt 0:00:02]} 34. Nb2 {[%emt 0:00:05]} Be5 {[%emt 0:00:13]} 35. a5 {[%emt 0:00:05]} Nd7 {[%emt 0:00:13]} 36. Nd3 {[%emt 0:00:52]} Bc3 {[%emt 0:03:09]} 37. Be3 {[%emt 0:01:22]} Bxa5 {[%emt 0:00:44]} 38. Bxc5 {[%emt 0:00:31]} a6 {[%emt 0:02:05]} 39. Bd6 {[%emt 0:00:09]} g6 {[%emt 0:00:33]} 40. Kg3 {[%emt 0:00:37]} Kg7 {[%emt 0:00:00]} 41. Kf4 {[%emt 0:02:38]} Kf6 {[%emt 0:05:32]} 42. fxg6 {[%emt 0:00:30]} fxg6 {[%emt 0:00:00]} 43. Ke4 {[%emt 0:00:30]} Ke6 {[%emt 0:01:00]} 44. Ba3 {[%emt 0:00:00]} Bc7 {[%emt 0:03:30]} 45. Bc1 {[%emt 0:01:00]} h5 {[%emt 0:02:30]} 46. Nf4+ {[%emt 0:07:30]} Bxf4 {[%emt 0:02:30]} 47. Bxf4 {[%emt 0:00:00]} b5 {[%emt 0:03:23]} 48. cxb5 {[%emt 0:01:00]} axb5 {[%emt 0:00:04]} 49. Kd4 {[%emt 0:01:30]} Kf5 {[%emt 0:01:18]} 50. Bd6 {[%emt 0:01:30]} Nb6 {[%emt 0:00:51]} 51. Kc5 {[%emt 0:06:37]} Nc4 {[%emt 0:00:17]} 52. Bc7 {[%emt 0:00:13]} Ne5 {[%emt 0:01:05]} 53. Kxb5 {[%emt 0:00:15]} Nxf3 {[%emt 0:00:10]} 54. Kc4 {[%emt 0:00:11]} Ng5 {[%emt 0:01:16]} 55. h4 {[%emt 0:00:26]} Nf3 {[%emt 0:00:05]} 56. Bd8 {[%emt 0:00:06]} Kg4 {[%emt 0:00:13]} 57. Kd3 {[%emt 0:00:04]} Nxh4 {[%emt 0:00:12]} 58. Ke2 {[%emt 0:00:04]} Kg3 {[%emt 0:01:17]} 59. Kf1 {[%emt 0:00:14]} Ng2 {[%emt 0:02:01]} 60. Kg1 {[%emt 0:01:30]} Nf4 {[%emt 0:00:29]} 61. Ba5 {[%emt 0:00:46]} g5 {[%emt 0:00:59]} 62. Be1+ {[%emt 0:02:52]} Kf3 {[%emt 0:05:39]} 63. Bb4 {[%emt 0:00:33]} g4 {[%emt 0:00:23]} 64. Bc5 {[%emt 0:02:33]} g3 {[%emt 0:00:21]} 65. Bb6 {[%emt 0:00:15]} Nh3+ {[%emt 0:02:18]} 66. Kh1 {[%emt 0:00:14]} Nf2+ {[%emt 0:00:15]} 0-1

[Event "ESTCC 50 2019"]
[Site "Mali Losinj"]
[Date "2019.09.19"]
[Round "2.4"]
[White "Ibragimov, Ildar"]
[Black "Plesec, Damjan"]
[Result "1/2-1/2"]
[ECO "D15"]
[WhiteElo "2537"]
[BlackElo "2216"]
[Annotator "ChessBase"]
[PlyCount "94"]
[EventDate "2019.09.18"]
[EventType "team-tourn"]
[EventCountry "CRO"]
[SourceTitle "playchess.com"]
[Source "ChessBase"]
[SourceQuality "1"]
[WhiteTeam "Russia"]
[BlackTeam "Slovenia"]
[WhiteTeamCountry "RUS"]
[BlackTeamCountry "SLO"]
[TimeControl "40/5400+30:1800+30"]

1. d4 {[%emt 0:00:30]} d5 {[%emt 0:00:30]} 2. c4 {[%emt 0:00:00]} c6 {[%emt 0:00:30]} 3. Nc3 {[%emt 0:01:00]} Nf6 {[%emt 0:00:30]} 4. Nf3 {[%emt 0:00:30]} a6 {[%emt 0:01:30]} 5. e3 {[%emt 0:05:30]} g6 {[%emt 0:01:30]} 6. Be2 {[%emt 0:07:30]} Bg7 {[%emt 0:01:30]} 7. Qb3 {[%emt 0:07:30]} O-O {[%emt 0:02:30]} 8. cxd5 {[%emt 0:00:30]} cxd5 {[%emt 0:04:30]} 9. Ne5 {[%emt 0:00:30]} e6 {[%emt 0:03:30]} 10. O-O {[%emt 0:11:30]} Nfd7 {[%emt 0:06:30]} 11. Nxd7 {[%emt 0:00:30]} Nxd7 {[%emt 0:01:30]} 12. Bd2 {[%emt 0:00:00]} b6 {[%emt 0:04:30]} 13. a4 {[%emt 0:02:00]} Bb7 {[%emt 0:02:30]} 14. Rfc1 {[%emt 0:00:30]} Rc8 {[%emt 0:01:30]} 15. Na2 {[%emt 0:02:30]} Rxc1+ {[%emt 0:14:30]} 16. Rxc1 {[%emt 0:00:00]} Qb8 {[%emt 0:01:30]} 17. Nb4 {[%emt 0:06:00]} Rc8 {[%emt 0:02:30]} 18. Rc3 {[%emt 0:07:30]} a5 {[%emt 0:05:30]} 19. Nc2 {[%emt 0:04:30]} Rxc3 {[%emt 0:02:30]} 20. bxc3 {[%emt 0:00:30]} Bc6 {[%emt 0:06:30]} 21. Na3 {[%emt 0:00:30]} Bf8 {[%emt 0:01:30]} 22. Nb5 {[%emt 0:00:30]} Nf6 {[%emt 0:01:30]} 23. f3 {[%emt 0:07:30]} Ne8 {[%emt 0:00:30]} 24. c4 {[%emt 0:00:30]} Bxb5 {[%emt 0:02:30]} 25. Qxb5 {[%emt 0:02:30]} Nd6 {[%emt 0:00:30]} 26. Qc6 {[%emt 0:00:30]} Nxc4 {[%emt 0:01:30]} 27. Bxc4 {[%emt 0:00:00]} dxc4 {[%emt 0:00:30]} 28. Qxc4 {[%emt 0:06:00]} Bd6 {[%emt 0:05:30]} 29. h3 {[%emt 0:00:30]} Kf8 {[%emt 0:03:30]} 30. Kf1 {[%emt 0:00:30]} Be7 {[%emt 0:01:30]} 31. e4 {[%emt 0:03:30]} Qd8 {[%emt 0:05:49]} 32. Bh6+ {[%emt 0:02:30]} Kg8 {[%emt 0:00:08]} 33. Qc6 {[%emt 0:05:50]} Bg5 {[%emt 0:04:01]} 34. Bxg5 {[%emt 0:00:33]} Qxg5 {[%emt 0:00:04]} 35. d5 {[%emt 0:00:18]} exd5 {[%emt 0:00:45]} 36. exd5 {[%emt 0:00:06]} Qd2 {[%emt 0:00:36]} 37. Qe8+ {[%emt 0:01:34]} Kg7 {[%emt 0:00:11]} 38. Qe5+ {[%emt 0:00:16]} f6 {[%emt 0:00:49]} 39. Qe7+ {[%emt 0:08:35]} Kg8 {[%emt 0:04:04]} 40. Qd8+ {[%emt 0:04:54]} Kg7 {[%emt 0:00:22]} 41. Qc7+ {[%emt 0:30:27]} Kg8 {[%emt 0:31:32]} 42. d6 {[%emt 0:01:22]} Qd1+ {[%emt 0:00:31]} 43. Kf2 {[%emt 0:00:08]} Qd2+ {[%emt 0:00:17]} 44. Kg3 {[%emt 0:00:49]} Qg5+ {[%emt 0:00:34]} 45. Kh2 {[%emt 0:00:08]} Qe5+ {[%emt 0:00:09]} 46. f4 {[%emt 0:01:42]} Qxf4+ {[%emt 0:00:30]} 47. Kg1 {[%emt 0:00:34]} Qd4+ {[%emt 0:00:53]} 1/2-1/2

[Event "ESTCC 50 2019"]
[Site "Mali Losinj"]
[Date "2019.09.19"]
[Round "2.5"]
[White "Kozul, Zdenko"]
[Black "Ledger, Andrew J"]
[Result "1-0"]
[ECO "D15"]
[WhiteElo "2569"]
[BlackElo "2343"]
[Annotator "ChessBase"]
[PlyCount "67"]
[EventDate "2019.09.18"]
[EventType "team-tourn"]
[EventCountry "CRO"]
[SourceTitle "playchess.com"]
[Source "ChessBase"]
[SourceQuality "1"]
[WhiteTeam "Croatia"]
[BlackTeam "England"]
[WhiteTeamCountry "CRO"]
[BlackTeamCountry "ENG"]
[TimeControl "40/5400+30:1800+30"]

1. d4 {[%emt 0:00:30]} d5 {[%emt 0:00:30]} 2. c4 {[%emt 0:00:00]} c6 {[%emt 0:00:00]} 3. e3 {[%emt 0:01:00]} Nf6 {[%emt 0:00:00]} 4. Nf3 {[%emt 0:00:30]} Bf5 {[%emt 0:01:30]} 5. Nc3 {[%emt 0:00:30]} a6 {[%emt 0:01:30]} 6. Bd3 {[%emt 0:03:30]} Bg6 {[%emt 0:02:30]} 7. Bxg6 {[%emt 0:07:30]} hxg6 {[%emt 0:00:00]} 8. Qb3 {[%emt 0:00:30]} Ra7 {[%emt 0:10:00]} 9. cxd5 {[%emt 0:28:30]} cxd5 {[%emt 0:02:30]} 10. e4 {[%emt 0:00:30]} Nxe4 {[%emt 0:11:30]} 11. Nxd5 {[%emt 0:07:30]} e6 {[%emt 0:10:30]} 12. Nc3 {[%emt 0:00:30]} Nxc3 {[%emt 0:03:30]} 13. bxc3 {[%emt 0:00:30]} Nc6 {[%emt 0:03:30]} 14. O-O {[%emt 0:00:00]} Bd6 {[%emt 0:07:30]} 15. h3 {[%emt 0:02:00]} Na5 {[%emt 0:06:30]} 16. Qc2 {[%emt 0:00:30]} Qc7 {[%emt 0:02:30]} 17. Re1 {[%emt 0:08:30]} O-O {[%emt 0:04:30]} 18. Qe4 {[%emt 0:03:30]} Nc4 {[%emt 0:09:30]} 19. Qh4 {[%emt 0:08:30]} Be7 {[%emt 0:02:31]} 20. Bg5 {[%emt 0:00:30]} Nd6 {[%emt 0:01:09]} 21. Qg3 {[%emt 0:10:10]} f6 {[%emt 0:09:46]} 22. Bd2 {[%emt 0:00:51]} Kf7 {[%emt 0:01:00]} 23. Qf4 {[%emt 0:00:31]} Nb5 {[%emt 0:02:57]} 24. Ne5+ {[%emt 0:02:56]} Kg8 {[%emt 0:01:23]} 25. Nxg6 {[%emt 0:00:06]} Qxf4 {[%emt 0:00:56]} 26. Nxf4 {[%emt 0:00:57]} Rc8 {[%emt 0:01:08]} 27. Rxe6 {[%emt 0:02:04]} Ba3 {[%emt 0:00:35]} 28. Nd5 {[%emt 0:00:14]} Rd8 {[%emt 0:01:49]} 29. Nb6 {[%emt 0:02:44]} Bb2 {[%emt 0:00:17]} 30. Rae1 {[%emt 0:00:20]} Nxc3 {[%emt 0:01:01]} 31. Nc4 {[%emt 0:06:56]} Na4 {[%emt 0:00:29]} 32. Nxb2 {[%emt 0:00:32]} Nxb2 {[%emt 0:00:07]} 33. Ba5 {[%emt 0:00:04]} Rd5 {[%emt 0:00:26]} 34. Re8+ {[%emt 0:00:09]} 1-0

[Event "ESTCC 50 2019"]
[Site "Mali Losinj"]
[Date "2019.09.19"]
[Round "2.6"]
[White "Lewis, Andrew P"]
[Black "Zelcic, Robert"]
[Result "0-1"]
[ECO "E32"]
[WhiteElo "2294"]
[BlackElo "2503"]
[Annotator "ChessBase"]
[PlyCount "66"]
[EventDate "2019.09.18"]
[EventType "team-tourn"]
[EventCountry "CRO"]
[SourceTitle "playchess.com"]
[Source "ChessBase"]
[SourceQuality "1"]
[WhiteTeam "England"]
[BlackTeam "Croatia"]
[WhiteTeamCountry "ENG"]
[BlackTeamCountry "CRO"]
[TimeControl "40/5400+30:1800+30"]

1. d4 {[%emt 0:00:30]} Nf6 {[%emt 0:03:30]} 2. c4 {[%emt 0:00:00]} e6 {[%emt 0:00:00]} 3. Nc3 {[%emt 0:00:00]} Bb4 {[%emt 0:00:00]} 4. Qc2 {[%emt 0:00:30]} O-O {[%emt 0:00:30]} 5. e4 {[%emt 0:00:30]} d6 {[%emt 0:00:00]} 6. a3 {[%emt 0:01:30]} Bxc3+ {[%emt 0:01:00]} 7. bxc3 {[%emt 0:00:30]} e5 {[%emt 0:00:00]} 8. Bd3 {[%emt 0:00:30]} c5 {[%emt 0:11:00]} 9. Ne2 {[%emt 0:10:30]} Nc6 {[%emt 0:03:30]} 10. O-O {[%emt 0:06:30]} Na5 {[%emt 0:02:30]} 11. f4 {[%emt 0:05:30]} b5 {[%emt 0:00:30]} 12. fxe5 {[%emt 0:13:30]} dxe5 {[%emt 0:00:30]} 13. Bg5 {[%emt 0:04:30]} bxc4 {[%emt 0:00:00]} 14. Rad1 {[%emt 0:09:30]} Qb6 {[%emt 0:08:00]} 15. Bxf6 {[%emt 0:02:30]} gxf6 {[%emt 0:00:30]} 16. Ng3 {[%emt 0:00:30]} cxd3 {[%emt 0:01:30]} 17. Rxd3 {[%emt 0:07:30]} Bg4 {[%emt 0:08:30]} 18. h3 {[%emt 0:03:30]} c4 {[%emt 0:00:30]} 19. Rd2 {[%emt 0:07:30]} exd4 {[%emt 0:00:00]} 20. cxd4 {[%emt 0:01:30]} Qb3 {[%emt 0:05:00]} 21. Qxb3 {[%emt 0:06:43]} Nxb3 {[%emt 0:03:30]} 22. Rdf2 {[%emt 0:00:11]} Bc8 {[%emt 0:00:30]} 23. d5 {[%emt 0:00:21]} c3 {[%emt 0:00:30]} 24. Rc2 {[%emt 0:07:12]} Ba6 {[%emt 0:00:30]} 25. Rxf6 {[%emt 0:00:55]} Rfc8 {[%emt 0:00:30]} 26. Rxa6 {[%emt 0:03:11]} Nd4 {[%emt 0:00:30]} 27. Rc1 {[%emt 0:01:54]} c2 {[%emt 0:00:00]} 28. Kf2 {[%emt 0:01:54]} Nb3 {[%emt 0:09:00]} 29. Ne2 {[%emt 0:00:20]} Nxc1 {[%emt 0:01:30]} 30. Nxc1 {[%emt 0:00:06]} Rc4 {[%emt 0:00:30]} 31. Ke3 {[%emt 0:02:41]} Re8 {[%emt 0:00:00]} 32. Kd3 {[%emt 0:02:39]} Rexe4 {[%emt 0:00:00]} 33. Rc6 {[%emt 0:00:31]} Red4+ {[%emt 0:00:30]} 0-1

[Event "ESTCC 50 2019"]
[Site "Mali Losinj"]
[Date "2019.09.19"]
[Round "2.7"]
[White "Kurajica, Bojan"]
[Black "Nelson, Jonathan P"]
[Result "1/2-1/2"]
[ECO "A41"]
[WhiteElo "2493"]
[BlackElo "2183"]
[Annotator "ChessBase"]
[PlyCount "98"]
[EventDate "2019.09.18"]
[EventType "team-tourn"]
[EventCountry "CRO"]
[SourceTitle "playchess.com"]
[Source "ChessBase"]
[SourceQuality "1"]
[WhiteTeam "Croatia"]
[BlackTeam "England"]
[WhiteTeamCountry "CRO"]
[BlackTeamCountry "ENG"]
[TimeControl "40/5400+30:1800+30"]

1. Nf3 {[%emt 0:00:30]} d6 {[%emt 0:00:30]} 2. d4 {[%emt 0:00:00]} Bg4 {[%emt 0:00:30]} 3. e4 {[%emt 0:01:00]} Nf6 {[%emt 0:00:30]} 4. h3 {[%emt 0:02:30]} Bh5 {[%emt 0:00:00]} 5. Nc3 {[%emt 0:01:30]} e6 {[%emt 0:00:00]} 6. Qe2 {[%emt 0:02:30]} c6 {[%emt 0:01:30]} 7. g4 {[%emt 0:06:30]} Bg6 {[%emt 0:00:30]} 8. g5 {[%emt 0:01:30]} Nfd7 {[%emt 0:12:30]} 9. Nh4 {[%emt 0:01:30]} e5 {[%emt 0:04:30]} 10. d5 {[%emt 0:07:30]} Be7 {[%emt 0:02:30]} 11. Rg1 {[%emt 0:00:30]} Nb6 {[%emt 0:12:30]} 12. a4 {[%emt 0:14:30]} a5 {[%emt 0:06:30]} 13. Be3 {[%emt 0:00:00]} Na6 {[%emt 0:01:30]} 14. Nf5 {[%emt 0:06:00]} Bxf5 {[%emt 0:06:30]} 15. exf5 {[%emt 0:00:00]} Nb4 {[%emt 0:00:30]} 16. Bxb6 {[%emt 0:22:00]} Qxb6 {[%emt 0:00:00]} 17. O-O-O {[%emt 0:00:30]} O-O-O {[%emt 0:09:00]} 18. Rg4 {[%emt 0:01:30]} h5 {[%emt 0:12:30]} 19. Rg2 {[%emt 0:04:30]} Kb8 {[%emt 0:01:30]} 20. Kb1 {[%emt 0:01:30]} Rc8 {[%emt 0:01:30]} 21. f6 {[%emt 0:02:30]} gxf6 {[%emt 0:01:30]} 22. gxf6 {[%emt 0:00:30]} Bxf6 {[%emt 0:04:30]} 23. Qf3 {[%emt 0:00:00]} Rh6 {[%emt 0:03:36]} 24. dxc6 {[%emt 0:03:00]} e4 {[%emt 0:04:14]} 25. Qe3 {[%emt 0:06:43]} Qxe3 {[%emt 0:01:00]} 26. fxe3 {[%emt 0:00:06]} Bxc3 {[%emt 0:01:43]} 27. cxb7 {[%emt 0:00:17]} Kxb7 {[%emt 0:00:26]} 28. bxc3 {[%emt 0:00:06]} Rxc3 {[%emt 0:00:42]} 29. Rf2 {[%emt 0:00:43]} Rc7 {[%emt 0:00:44]} 30. Bb5 {[%emt 0:01:49]} Rg6 {[%emt 0:02:39]} 31. h4 {[%emt 0:02:01]} Rg3 {[%emt 0:01:30]} 32. Re2 {[%emt 0:03:07]} Rg6 {[%emt 0:02:37]} 33. Kb2 {[%emt 0:00:36]} Rc5 {[%emt 0:02:41]} 34. Rf2 {[%emt 0:01:55]} f5 {[%emt 0:00:28]} 35. Be8 {[%emt 0:01:10]} Rg3 {[%emt 0:00:52]} 36. Rxd6 {[%emt 0:02:15]} Rxe3 {[%emt 0:00:45]} 37. Bxh5 {[%emt 0:00:39]} Rec3 {[%emt 0:00:46]} 38. Bd1 {[%emt 0:00:42]} e3 {[%emt 0:01:36]} 39. Rg2 {[%emt 0:01:27]} f4 {[%emt 0:00:32]} 40. Rf6 {[%emt 0:00:27]} R3c4 {[%emt 0:00:31]} 41. h5 {[%emt 0:01:27]} Rc7 {[%emt 0:14:16]} 42. h6 {[%emt 0:01:30]} e2 {[%emt 0:00:26]} 43. Rxe2 {[%emt 0:01:30]} Nd5 {[%emt 0:00:08]} 44. Rd6 {[%emt 0:08:30]} Nc3 {[%emt 0:05:15]} 45. Re1 {[%emt 0:03:30]} Nxd1+ {[%emt 0:08:00]} 46. Rexd1 {[%emt 0:00:30]} Rxc2+ {[%emt 0:00:05]} 47. Kb1 {[%emt 0:00:30]} Rh2 {[%emt 0:00:14]} 48. Rf6 {[%emt 0:00:45]} f3 {[%emt 0:00:54]} 49. Rf1 {[%emt 0:04:58]} Rh7 {[%emt 0:02:11]} 1/2-1/2

[Event "ESTCC 50 2019"]
[Site "Mali Losinj"]
[Date "2019.09.19"]
[Round "2.9"]
[White "Blatny, Pavel"]
[Black "Sulc, Damir"]
[Result "1-0"]
[ECO "A03"]
[WhiteElo "2325"]
[BlackElo "2207"]
[Annotator "NA"]
[PlyCount "75"]
[EventDate "2019.09.18"]
[EventType "team-tourn"]
[EventCountry "CRO"]
[SourceTitle "playchess.com"]
[Source "ChessBase"]
[SourceQuality "1"]
[WhiteTeam "Czech Republic"]
[BlackTeam "Croatia"]
[WhiteTeamCountry "CZE"]
[BlackTeamCountry "CRO"]
[TimeControl "40/5400+30:1800+30"]

1. e3 {[%emt 0:04:30]} d5 {[%emt 0:00:30]} 2. b3 {[%emt 0:00:30]} Nf6 {[%emt 0:00:00]} 3. Bb2 {[%emt 0:00:00]} c6 {[%emt 0:00:00]} 4. f4 {[%emt 0:00:00]} Bg4 {[%emt 0:01:30]} 5. Nf3 {[%emt 0:00:30]} Nbd7 {[%emt 0:02:30]} 6. Be2 {[%emt 0:00:30]} g6 {[%emt 0:06:30]} 7. O-O {[%emt 0:03:30]} Bg7 {[%emt 0:01:30]} 8. c4 {[%emt 0:00:30]} O-O {[%emt 0:04:30]} 9. cxd5 {[%emt 0:02:30]} cxd5 {[%emt 0:00:30]} 10. Qe1 {[%emt 0:02:30]} Bxf3 {[%emt 0:15:30]} 11. Bxf3 {[%emt 0:01:30]} Nc5 {[%emt 0:01:30]} 12. Qe2 {[%emt 0:00:30]} Rc8 {[%emt 0:12:30]} 13. g4 {[%emt 0:02:30]} e6 {[%emt 0:07:30]} 14. g5 {[%emt 0:02:30]} Ne8 {[%emt 0:04:30]} 15. d4 {[%emt 0:00:30]} Ne4 {[%emt 0:02:30]} 16. Bxe4 {[%emt 0:00:30]} dxe4 {[%emt 0:00:00]} 17. Nc3 {[%emt 0:00:30]} f5 {[%emt 0:00:00]} 18. gxf6 {[%emt 0:00:30]} Nxf6 {[%emt 0:00:00]} 19. Qg2 {[%emt 0:00:00]} Nd5 {[%emt 0:00:00]} 20. Nd1 {[%emt 0:02:00]} Nf6 {[%emt 0:06:30]} 21. Re1 {[%emt 0:09:30]} Qa5 {[%emt 0:00:30]} 22. Re2 {[%emt 0:00:30]} Rc6 {[%emt 0:00:30]} 23. Nf2 {[%emt 0:02:30]} Qf5 {[%emt 0:01:30]} 24. h3 {[%emt 0:03:30]} h5 {[%emt 0:07:30]} 25. Kh2 {[%emt 0:02:30]} Rfc8 {[%emt 0:00:30]} 26. Rg1 {[%emt 0:00:30]} Kf7 {[%emt 0:01:30]} 27. Nh1 {[%emt 0:01:30]} Bh6 {[%emt 0:04:31]} 28. Ng3 {[%emt 0:00:30]} Qd5 {[%emt 0:00:17]} 29. Nf1 {[%emt 0:01:30]} Qf5 {[%emt 0:00:14]} 30. Nd2 {[%emt 0:00:30]} b5 {[%emt 0:01:42]} 31. Ba3 {[%emt 0:02:30]} Rh8 {[%emt 0:04:35]} 32. Kh1 {[%emt 0:02:30]} Rc2 {[%emt 0:00:25]} 33. Nxe4 {[%emt 0:01:30]} Rxe2 {[%emt 0:03:26]} 34. Nd6+ {[%emt 0:00:30]} Kg8 {[%emt 0:00:26]} 35. Qa8+ {[%emt 0:02:30]} Kh7 {[%emt 0:01:15]} 36. Qxa7+ {[%emt 0:01:30]} Bg7 {[%emt 0:00:16]} 37. Nxf5 {[%emt 0:00:00]} exf5 {[%emt 0:00:11]} 38. Qf7 {[%emt 0:01:00]} 1-0